Cogmind - Beta 16 @@@ ROGUE MODE // 2025.11.28 @ 18:36:50 Player: jes Result: Self-destructed Performance ------------- Evolutions (2) 1000 Regions Visited (3) 600 Robots Destroyed (40) 200 Value Destroyed (1066) 1066 Prototype IDs (5) 100 Alien Tech Used (0) 0 Bonus (0) 0 TOTAL SCORE: 2966 Bonus ------- None Cogmind --------- Core Integrity 190/550 Matter 234/300 Energy 72/100 System Corruption 0% Temperature Cool (27) Movement Core (350) Ox6 Location -8/Materials Parts ------- > --- POWER (1) -------- (None) > --- PROPULSION (3) --- (None) > --- UTILITY (5) ------ Large Storage Unit Transport Network Coupler Hacking Suite > --- WEAPON (2) ------- (None) > --- INVENTORY (15) --- Reinforced Ion Engine Hacking Suite Mini Grenade Launcher Datajack Mace Peak State ------------ > --- POWER ------------ Cooled Ion Engine > --- PROPULSION ------- Light Treads Light Treads Light Treads > --- UTILITY ---------- Improved Heat Sink Large Storage Unit Seismic Detector Transport Network Coupler Hacking Suite > --- WEAPON ----------- Particle Gun Heavy Assault Rifle > --- INVENTORY -------- Reinforced Ion Engine Light Treads Light Treads Medium Armor Plating Hacking Suite Pulse Rifle Pulse Rifle Pulse Rifle Heavy Assault Rifle Heavy Assault Rifle Heavy Assault Rifle Shotgun Mini Grenade Launcher Datajack Mace [Rating: 22] Favorites ----------- Power Cooled Ion Engine Engine Cooled Ion Engine Power Core Light Nuclear Core Propulsion Light Treads Treads Light Treads Leg Aluminum Leg Wheel Wheel Utility Seismic Detector Device Seismic Detector Storage Large Storage Unit Processor Transport Network Coupler Hackware Hacking Suite Protection Medium Armor Plating Weapon Heavy Assault Rifle Energy Gun Medium Laser Ballistic Gun Heavy Assault Rifle Build | -11 -10 -9 -8 ------- Run | Yrd Mat Mat Mat Slots Evolved 4 | . . 2 2 Power . | . . . . Propulsion 1 | . . . 1 Utility 3 | . . 2 1 Weapon . | . . . . Parts Attached 37 | . 4 21 12 Power 3 | . . 2 1 Engine 2 | . . 2 . Core 1 | . . . 1 Reactor . | . . . . Propulsion 13 | . 2 9 2 Treads 12 | . 1 9 2 Leg . | . . . . Wheel 1 | . 1 . . Hover . | . . . . Flight . | . . . . Utility 8 | . 2 4 2 Device 2 | . 1 . 1 Storage 2 | . 1 1 . Processor 2 | . . 2 . Hackware 1 | . . 1 . Protection 1 | . . . 1 Artifact . | . . . . Weapon 13 | . . 6 7 Energy Gun 6 | . . 3 3 Energy Cannon . | . . . . Ballistic Gun 7 | . . 3 4 Ballistic Cannon . | . . . . Launcher . | . . . . Special Weapon . | . . . . Impact Weapon . | . . . . Slashing Weapon . | . . . . Piercing Weapon . | . . . . Special Melee Weapon . | . . . . Unidentified Prototypes 2 | . . 2 . Parts Lost 20 | . . 2 18 Power 1 | . . . 1 Propulsion 6 | . . 1 5 Utility 3 | . . . 3 Weapon 10 | . . 1 9 Highest Loss Streak 14 | . . 1 14 To Critical Strikes . | . . . . Average Backups 11 | . 8 12 11 Power 1 | . 1 1 1 Propulsion 3 | . 4 3 1 Utility 2 | . 2 2 1 Weapon 4 | . 1 4 6 Tool/Special . | . . . . Unused Backups 14 | . 4 5 5 Power 3 | . . 2 1 Propulsion 5 | . 4 1 . Utility 2 | . . 1 1 Weapon 3 | . . 1 2 Tool/Special 1 | . . . 1 Average Slot Usage (%) 97 | . 93 99 94 Engine 10 | . 14 11 5 Treads 17 | . 8 17 24 Leg 2 | . 10 . . Wheel 4 | . 8 4 . Device 10 | . 7 11 12 Storage 11 | . 14 11 9 Processor 10 | . . 15 9 Hackware 5 | . . 6 9 Energy Gun 15 | . 28 13 7 Ballistic Gun 6 | . . 7 10 Peak Build Rating 22 | . 8 19 22 Average Rating 13 | . 6 14 20 On Entrance 9 | 6 6 8 17 Avg Prop Armor Cover (%) 11 | . 12 10 . Naked Turns . | . . . . Heaviest Build 42 | 14 20 35 42 Greatest Support 60 | 20 20 40 60 Greatest Overweight (x) 2 | . 1 2 . Average Overweight (x) . | . . . . Largest Inventory Capacity 15 | . 10 15 15 Average Capacity 12 | . 9 12 15 Most Carried 15 | . 10 15 15 Average Carried 11 | . 8 12 11 Final Capacity 15 | 8 10 15 15 Final Carried 14 | 6 10 14 5 Class Distribution -------------------- 51% | Mutant 48% | Scavenger-Mutant Dominant Class ---------------- Mutant | -10/Materials Scavenger-Mutant | -9/Materials Mutant | -8/Materials Resources | -11 -10 -9 -8 ----------- Run | Yrd Mat Mat Mat Matter Collected 733 | 200 40 321 172 Remotely . | . . . . Salvage Created 1652 | . 180 1079 393 Parts 93 | . 9 69 15 Haulers Intercepted 5 | . 1 4 . Recyclers Shooed 1 | . . 1 . Parts Field Recycled . | . . . . Retrieved Matter . | . . . . Parts Self-Destructed . | . . . . Prevented . | . . . . Parts Restored . | . . . . Kills | -11 -10 -9 -8 ------- Run | Yrd Mat Mat Mat Combat Hostiles Destroyed 28 | . 2 19 7 Guns 25 | . 2 17 6 AOE 2 | . . 2 . Classes Destroyed 9 | . 3 6 . Worker 1 | . . 1 . Hauler 5 | . 1 4 . Recycler 2 | . . 1 1 Operator 1 | . . 1 . Watcher 3 | . 1 2 . Swarmer 6 | . . 6 . Grunt 14 | . 2 7 5 Brawler 2 | . . 1 1 Sentry 6 | . . 5 1 Best Kill Streak 5 | . 2 5 5 Combat Bots Only 4 | . 2 4 3 Max Kills in Single Turn 2 | . 1 2 1 Gunslinging 1 | . . 1 . Exploded 1 | . . 1 . Melee . | . . . . Uniques/NPCs Destroyed . | . . . . Combat | -11 -10 -9 -8 -------- Run | Yrd Mat Mat Mat Hostile Shots Fired 270 | . 7 67 196 Missed 70 | . 4 22 44 Hits 200 | . 3 45 152 Melee 3 | . . 1 2 Projectile 197 | . 3 44 150 Critical Strikes 6 | . . . 6 Damage Taken 2987 | . 29 606 2352 Core 449 | . 10 79 360 Absorbed by Shields . | . . . . Core Remaining (%) 92 | 100 96 80 . Volleys Fired 148 | . 22 82 44 Largest 2 | . 2 2 2 Hottest 90 | . 90 90 88 Shots Fired 276 | . 36 156 84 Gun 276 | . 36 156 84 Cannon . | . . . . Launcher . | . . . . Special . | . . . . Kinetic 101 | . . 47 54 Thermal 117 | . 14 73 30 Explosive . | . . . . Electromagnetic 58 | . 22 36 . Robot Hit Streak 19 | . 7 19 17 Robot Miss Streak 5 | . 4 5 3 Penetration Max . | . . . . Secondary Targets 4 | . . 2 2 Max Gunslinging Chain 1 | . . 1 1 Shots Hit Robots 179 | . 18 99 62 Core Hits 68 | . 7 44 17 Critical Kills 1 | . . 1 . Critical Parts Destroyed . | . . . . Critical Strikes 5 | . . 4 1 Burn 3 | . . 2 1 Destroy 1 | . . 1 . Corrupt 1 | . . 1 . Melee Attacks . | . . . . Impact . | . . . . Slashing . | . . . . Piercing . | . . . . Sneak Attacks . | . . . . Combat Hostiles . | . . . . Follow-up Attacks . | . . . . Damage Inflicted 2805 | . 317 1416 1072 Guns 2600 | . 251 1277 1072 Cannons . | . . . . Explosions 205 | . 66 139 . Melee . | . . . . Ramming . | . . . . Kinetic 981 | . . 355 626 Thermal 1304 | . 166 692 446 Explosive . | . . . . Electromagnetic 520 | . 151 369 . Impact . | . . . . Slashing . | . . . . Piercing . | . . . . Highest Corruption . | . . . . Average Corruption . | . . . . Corruption Purged . | . . . . Corruption Blocked . | . . . . Overload Shots . | . . . . Overflow Damage 8 | . 8 . . Projectiles . | . . . . Explosions 8 | . 8 . . Melee . | . . . . Knockbacks . | . . . . Impact . | . . . . Kinetic . | . . . . Secondary . | . . . . Self-Inflicted Damage 47 | . . 47 . Shots 1 | . . 1 . Rammed . | . . . . Targets Rammed . | . . . . Kicked . | . . . . Crushed . | . . . . Highest Temperature 297 | . 192 261 297 Average Temperature 59 | . 68 50 85 Received Heat Transfer 1179 | . 12 177 990 Siege Activations . | . . . . Martial Activations . | . . . . Shielding Activations . | . . . . Robots Disrupted . | . . . . Combat Hostiles . | . . . . Robots Corrupted 1 | . . 1 . Combat Hostiles . | . . . . Parts Fried 5 | . . 5 . Impact Corruptions . | . . . . Robots Melted 1 | . . . 1 Combat Hostiles 1 | . . . 1 Parts Melted 7 | . . 4 3 Heat Transferred 3276 | . 396 1807 1073 Parts Sabotaged . | . . . . Parts Stolen . | . . . . Parts Stripped . | . . . . Power Chain Reactions 3 | . 1 2 . Alert | -11 -10 -9 -8 ------- Run | Yrd Mat Mat Mat Maximum Alert Level . | . . . . Low Security (%) 100 | . 100 100 100 Level 1 . | . . . . Level 2 . | . . . . Level 3 . | . . . . Level 4 . | . . . . Level 5 . | . . . . High Security . | . . . . Max Security . | . . . . Peak Influence 197 | . 30 197 65 Initial 62 | . . . 62 Average 71 | . 3 109 23 Influence Increases 887 | . 71 611 205 Destroy 0b10 Robot/C 560 | . 40 380 140 Destroy 0b10 Robot/NC 60 | . 10 45 5 Destroy Leader 136 | . 4 102 30 Successful Hack 42 | . 14 28 . Disable Machine 30 | . . 15 15 Destroy Structure 14 | . 3 11 . Lose Combat Pursuer 45 | . . 30 15 Influence Decreases 887 | . 71 462 354 Entered New Map 87 | . . . 87 Time Decay 655 | . 71 442 142 Lost Part 145 | . . 20 125 Squads Dispatched 2 | . . 1 1 Investigation . | . . . . Extermination . | . . . . Reinforcement 2 | . . 1 1 Assault . | . . . . Garrison . | . . . . Intercept . | . . . . Searches Triggered . | . . . . Construction Impeded . | . . . . Haulers Reinforced . | . . . . Active Scanning Responses . | . . . . Cargo Convoy Interrupts . | . . . . Stealth | -11 -10 -9 -8 --------- Run | Yrd Mat Mat Mat Distress Signals 3 | . . 2 1 Communications Jammed . | . . . . Distress Signals . | . . . . Times Spotted 56 | . 8 34 14 Peak Tracking Total 6 | . 3 4 6 Tactical Retreats 3 | . . 2 1 Traps | -11 -10 -9 -8 ------- Run | Yrd Mat Mat Mat Traps Triggered . | . . . . Indirectly . | . . . . Trap Hack Attempts . | . . . . Triggered . | . . . . Disarmed . | . . . . Reprogrammed . | . . . . Reused . | . . . . Traps Extracted . | . . . . Installed . | . . . . Triggered . | . . . . Machines | -11 -10 -9 -8 ---------- Run | Yrd Mat Mat Mat Machines Disabled 2 | . . 1 1 Max in Single Turn 1 | . . 1 1 Machines Repaired . | . . . . Machines Dismantled . | . . . . Machines Sabotaged . | . . . . Overloaded Fab Kills . | . . . . Hacking | -11 -10 -9 -8 --------- Run | Yrd Mat Mat Mat Machines Accessed 10 | . 3 7 . Terminals 6 | . 2 4 . Fabricators . | . . . . Repair Stations . | . . . . Recycling Units 2 | . 1 1 . Scanalyzers 2 | . . 2 . Garrison Access . | . . . . Total Hacks 32 | . 11 21 . Successful 20 | . 7 13 . Failed 11 | . 4 7 . Catastrophic 1 | . 1 . . Database Lockouts 1 | . . 1 . Manual 9 | . 3 6 . Terminals 17 | . 7 10 . Fabricators . | . . . . Repair Stations . | . . . . Recycling Units 10 | . 4 6 . Scanalyzers 5 | . . 5 . Garrison Access . | . . . . Terminal Hacks 11 | . 4 7 . Prototype ID Bank 2 | . 1 1 . Branch Access Points 1 | . . 1 . Terminal Index 2 | . 1 1 . Alert Level 1 | . . 1 . Locate Traps 2 | . 1 1 . Hauler Manifests 1 | . 1 . . Registered Components 1 | . . 1 . Zone Layout 1 | . . 1 . Fabricator Hacks . | . . . . Repair Station Hacks . | . . . . Recycling Unit Hacks 1 | . 1 . . Retrieve Components 1 | . 1 . . Scanalyzer 4 | . . 4 . Insert Component 2 | . . 2 . Analyze 2 | . . 2 . Garrison Access Hacks . | . . . . Unauthorized Hacks 4 | . 2 2 . Terminals . | . . . . Fabricators . | . . . . Repair Stations . | . . . . Recycling Units 4 | . 2 2 . Reject 2 | . 1 1 . Recyclers 2 | . 1 1 . Scanalyzers . | . . . . Garrison Access . | . . . . Data Cores Recovered . | . . . . Used . | . . . . Hacking Detections 9 | . 3 6 . Full Trace Events 1 | . 1 . . Feedback Events . | . . . . Feedback Blocked . | . . . . Robot Schematics Acquired . | . . . . Robots Built . | . . . . Authchips . | . . . . Time . | . . . . Total Robot Build Rating . | . . . . Part Schematics Acquired 2 | . . 2 . Parts Built . | . . . . Authchips . | . . . . Time . | . . . . Total Part Build Rating . | . . . . Part Studies Acquired . | . . . . Parts Repaired . | . . . . Time . | . . . . Parts Recycled . | . . . . Recycled Matter . | . . . . Retrieved Matter . | . . . . Retrieved Components . | . . . . Parts Scanalyzed 2 | . . 2 . Part Schematics Acquired 2 | . . 2 . Parts Damaged 1 | . . 1 . Bothacking | -11 -10 -9 -8 ------------ Run | Yrd Mat Mat Mat Used RIF Installer . | . . . . Robots Hacked . | . . . . Non-combat . | . . . . Combat . | . . . . Robot Hacks Applied . | . . . . Relay Couplers Released . | . . . . Fabnet Peak Effective % . | . . . . Robots Rewired . | . . . . Allies Hacked . | . . . . Hacks Repelled . | . . . . Allies | -11 -10 -9 -8 -------- Run | Yrd Mat Mat Mat Total Allies . | . . . . Largest Group . | . . . . Highest-Rated Group . | . . . . Highest-Rated Ally . | . . . . Total Orders . | . . . . Ally Attacks . | . . . . Total Damage . | . . . . Kills . | . . . . Allies Corrupted . | . . . . Allies Melted . | . . . . Intel | -11 -10 -9 -8 ------- Run | Yrd Mat Mat Mat Active Infowar (turns) 1904 | . 249 1258 397 Seismic 1863 | . 249 1258 356 T.N.C. 1655 | . . 1258 397 Robot Analysis Total . | . . . . Derelict Logs Recovered . | . . . . Drone Launches . | . . . . Drone Recoveries . | . . . . Exploration | -11 -10 -9 -8 ------------- Run | Yrd Mat Mat Mat Turns Passed 2091 | . 436 1258 397 Spaces Moved 1066 | 1 338 600 127 Core . | . . . . Treads 575 | . . 448 127 Legs 97 | 1 96 . . Wheels 394 | . 242 152 . Hover . | . . . . Flight . | . . . . Fastest Speed 95 | 120 95 95 160 Average Speed 135 | 120 102 148 160 Slowest Speed 240 | 120 120 240 160 Overloaded Moves . | . . . . Propulsion Burnouts . | . . . . Robots Hopped . | . . . . Potential Cave-ins . | . . . . Cave-ins Triggered . | . . . . Exploration Rate (%) 25 | 3 44 45 10 Regions Visited 3 Branch Regions . Pre-discovered Areas . | . . . . Known Exits Taken . | . . . . Unknown Exits Taken 3 | 1 1 1 . Scrap Searched . | . . . . Spaces Dug . | . . . . Terrain Destroyed 12 | . 3 9 . Melee . | . . . . Projectile . | . . . . AOE 12 | . 3 9 . Terrain Rammed . | . . . . Walls Destroyed . | . . . . Machines Disabled . | . . . . Actions | -11 -10 -9 -8 --------- Run | Yrd Mat Mat Mat Total 1449 | . 394 820 235 Wait 147 | . 21 81 45 Move 1063 | . 337 599 127 Hop . | . . . . Pick Up 21 | . 5 14 2 Fast Attach 6 | . 2 4 . Attach 17 | . 2 3 12 Detach 4 | . 3 1 . Swap 19 | . . 15 4 Drop 24 | . 2 21 1 Fire 148 | . 22 82 44 Melee . | . . . . Ram . | . . . . Kick . | . . . . Crush . | . . . . Escape Stasis . | . . . . Rewire . | . . . . Trap . | . . . . Miscellaneous . | . . . . Route ------- -11/Scrapyard -10/Materials -9/Materials (discovered 3 exits: [*Mat] / Min x2) -8/Materials History --------- Turn | Location | Event 1 | -11/Scrapyard | Discovered new exit (range 0) 1 | -11/Scrapyard | Entered Materials 233 | -10/Materials | Discovered new exit (range 16) 304 | -10/Materials | Build established: Mutant 437 | -10/Materials | Entered another Materials area 437 | -9/Materials | Evolved 2 slots: Utility x2 876 | -9/Materials | Central database locked down 1137 | -9/Materials | Build established: Scavenger-Mutant 1536 | -9/Materials | Identified exit to Mines 1584 | -9/Materials | Discovered new exit (range 12) 1695 | -9/Materials | Entered another Materials area 1695 | -8/Materials | Evolved 2 slots: Propulsion x1, Utility x1 1937 | -8/Materials | Lost 4 parts (2n2w) 2082 | -8/Materials | Core integrity fell below 50% 2092 | -8/Materials | Self-destructed Last Messages --------------- 02069_ G-47 Trooper suffers critical hit (Burn). 02071_ K-01 Serf collects debris. 02072_ Lgt. Treads destroyed. 02072_ Lgt. Nuclear Core destroyed. 02075_ G-47 Trooper critical meltdown. 02075_ Particle Gun melted. 02075_ Lgt. Nuclear Core melted. 02075_ Imp. Heat Sink melted. 02075_ Switching to secondary target: Y-45 Defender. 02075_ Imp. Heat Sink destroyed. 02079_ M-13 Machinist repairs M-28 Smith. 02079_ Penetrated by Slug. 02087_ R-06 Scavenger collects Lgt. Treads. 02088_ Penetrated by Slug. 02088_ Shotgun destroyed. 02090_ Pulse Rifle destroyed. 02091_ Slug penetrates Y-45 Defender. 02091_ Y-45 Defender destroyed. 02092_ R-06 Scavenger collects Lgt. Treads. Map ----- +----------------------------------------------------+ | ?????????????????????????????????????????????????? | | ?????????????????????????????????????????????????? | | ?????????????????????????????????????????????##### | | ?????????????????????????????????????????????# | | ?????????????????????????????????????????????# | | ?????????????????????????????????????????????# | | ?????????????????????????????????????????????# | | ?????????????????????????????????????????????# | | ?????????????????????????????????????????##### | | ??????????????????????????????????????#### # | | ???????????????????? ????????????????##! # | | ????????????????####/????????????????#! # | | ??????????????# %!! ????????????????#! ###+# | | ??????????????# !!! ? ##???????????#! | | ??????????????# !! #???????????#! ! | | ??????????????# #????????????##! """ | | ??????????????# "" "" #?????????????#### """ | | ??????????????+ ""S"" ###########??????# " " | | ??????????????# """" ??# #??????# | | ??????????????? ????# ######## [ | | ???????# ####+####### """ """ #! | | ??????????# m!"" """ + | | ??????????# #######%Y" """ #% /! """" | | ??????????# ##+###?????#[=%h #= / """" | | ??????????# ????????????#%% r [ # """" | | ????????????????????????#@ [ # * | | ????????????????????????########### | | ??????????????????????????????????# """" | | ??????????????????????????????????# """" | | ??????????????????????????????????# = """" | | ??????????????????????????????????######## | | ?????????????????????????????????????????? ^ | | ?????????????????????????????????????????? """" | | ?????????????????????????????????????????? """" | | ?????????????????????????????????????????? """?? | | ?????????????????????????????????????????? ??? | | ?????????????????????????????????????????? ??? | | ?????????????????????????????????????????????????? | | ?????????????????????????????????????????????????? | | ????????????????a????????????????????????????????? | | ?????????????????????????????????????????????????? | | ?????????????????????????????????????????????????? | | ?????????????????????????????????????????????????? | | ?????????????????????????????????????????????????? | | ?????????????????????????????????????????????????? | | ?????????????????????????????????????????????????? | | ?????????????????????????????????????????????????? | | ?????????????????????????????????????????????????? | | ?????????????????????????????????????????????????? | | ?????????????????????????????????????????????????? | +----------------------------------------------------+ Best States ------------- Heat Dissipation 45 Energy Generation 14 Energy Capacity 280 Matter Stores 300 Matter Capacity 300 Sight Range 16 Terrain Scan Density 10 Armor Coverage 225 Evasion (%) 55 Targeting Accuracy 5 Recoil Reduction 3 Offensive Hacking 10 Item Schematics ----------------- Rnf. Ion Engine | -9/Materials | Scanalyzed Hacking Suite | -9/Materials | Scanalyzed Robot Schematics ------------------ None Fabricated ------------ Nothing Repaired ---------- Nothing Studied --------- None Alien Tech Used ----------------- None Achievements -------------- None Challenges ------------ None Game ------ Seed CombatAerolevThruster Manual? 0 Play Time 00:27:14 Cumulative 141.6 hours Start 2025.11.28 @ 09:54:58 End 2025.11.28 @ 18:36:50 Sessions 5 Manual Loads 0 Difficulty Rogue Special Mode None Game No. 69 Rogue 69 Adventurer 0 Explorer 0 Win Type - Total 0 Types 0/0/0/0/0/0/0/0/0/0 Lore% 20 Gallery% 37 Achievement% 28 Wizard Run 0 Options --------- Layout 1 ASCII 1 Keyboard 1 Movement Vi Keybinds 0 Fullscreen 2 Font 24/Terminus Map View 50x35 Zoom Use 0% Tactical HUD 1 Map Filters NONE Filters NONE Steam 1 RUN: b944cc34-2841-44e7-bc5d-60756d46006d